Cogmind - Beta 11 @@@ ROGUE MODE // 2022.04.19 @ 23:39:27 Player: Dhoby_Ghaut Result: Destroyed by as-81994 with Assembled Maul Performance ------------- Evolutions (0) 0 Regions Visited (2) 400 Robots Destroyed (18) 90 Value Destroyed (438) 438 Prototype IDs (2) 40 Alien Tech Used (0) 0 Bonus (0) 0 TOTAL SCORE: 968 Bonus ------- None Cogmind --------- Core Integrity 0/250 Matter 173/300 Energy 125/125 System Corruption 9% Temperature Cool (0) Movement Treading (240) Ox1 Location -10/Mines Parts ------- > --- POWER (1) -------- Light Ion Engine > --- PROPULSION (2) --- Light Treads Light Treads > --- UTILITY (2) ------ High-capacity Storage Unit > --- WEAPON (2) ------- Assault Rifle Light Assault Rifle > --- INVENTORY (20) --- Light Ion Engine Light Ion Engine Light Nuclear Core Light Treads Light Treads Light Treads Light Treads Improved Heat Sink Large Storage Unit Small Matter Pod (50) Sensor Array Signal Interpreter Medium Laser Medium Laser Assault Rifle Mining Laser Peak State ------------ > --- POWER ------------ Ion Engine > --- PROPULSION ------- Light Treads Compact Wheel > --- UTILITY ---------- High-capacity Storage Unit Terrain Scanner > --- WEAPON ----------- Assault Rifle Rocket Launcher > --- INVENTORY -------- Light Ion Engine Light Ion Engine Light Ion Engine Light Nuclear Core Light Treads Light Treads Light Treads Light Treads Light Treads Compact Wheel Improved Heat Sink Large Storage Unit Small Matter Pod Sensor Array Signal Interpreter Medium Laser Medium Laser Assault Rifle Light Assault Rifle Mining Laser [Rating: 10] Favorites ----------- Power Light Ion Engine Engine Light Ion Engine Propulsion Light Treads Treads Light Treads Wheel Compact Wheel Utility High-capacity Storage Unit Device Terrain Scanner Storage High-capacity Storage Unit Weapon Assault Rifle Energy Gun Medium Laser Ballistic Gun Assault Rifle Launcher Rocket Launcher Special Weapon Mining Laser Build | -11 -10 -10 ------- Run | Scr Mat Min Slots Evolved . | . . . Power . | . . . Propulsion . | . . . Utility . | . . . Weapon . | . . . Parts Attached 32 | 5 17 10 Power 4 | 1 2 1 Engine 4 | 1 2 1 Core . | . . . Reactor . | . . . Propulsion 12 | 1 5 6 Treads 6 | 1 2 3 Leg . | . . . Wheel 6 | . 3 3 Hover . | . . . Flight . | . . . Utility 5 | 1 4 . Device 1 | . 1 . Storage 4 | 1 3 . Processor . | . . . Hackware . | . . . Protection . | . . . Artifact . | . . . Weapon 11 | 2 6 3 Energy Gun 2 | 2 . . Energy Cannon . | . . . Ballistic Gun 7 | . 5 2 Ballistic Cannon . | . . . Launcher 1 | . . 1 Special Weapon 1 | . 1 . Impact Weapon . | . . . Slashing Weapon . | . . . Piercing Weapon . | . . . Special Melee Weapon . | . . . Unidentified Prototypes . | . . . Parts Lost 8 | . 1 7 Power 2 | . 1 1 Propulsion 3 | . . 3 Utility 1 | . . 1 Weapon 2 | . . 2 Highest Loss Streak 5 | . 1 5 To Critical Strikes . | . . . Average Slot Usage (%) 93 | . 92 96 Engine 13 | . 13 13 Treads 14 | . 15 13 Wheel 10 | . 9 13 Device 11 | . 10 12 Storage 14 | . 14 14 Energy Gun 5 | . 7 . Ballistic Gun 21 | . 19 26 Naked Turns . | . . . Heaviest Build 50 | 12 49 50 Greatest Support 40 | 20 40 16 Greatest Overweight (x) 3 | . 3 3 Average Overweight (x) 1 | . 1 2 Largest Inventory Capacity 20 | 8 20 20 Average Capacity 17 | 7 17 20 Most Carried 20 | 3 20 20 Average Carried 12 | 1 10 19 Final Capacity 20 | 8 20 20 Final Carried 20 | 3 20 16 Class Distribution -------------------- 100% | Mutant Dominant Class ---------------- Mutant | -10/Materials Mutant | -10/Mines Resources | -11 -10 -10 ----------- Run | Scr Mat Min Matter Collected 733 | 227 394 112 Remotely . | . . . Salvage Created 702 | . 555 147 Parts 40 | . 33 7 Haulers Intercepted 2 | . 2 . Recyclers Shooed . | . . . Parts Field Recycled . | . . . Retrieved Matter . | . . . Parts Self-Destructed . | . . . Prevented . | . . . Kills | -11 -10 -10 ------- Run | Scr Mat Min Combat Hostiles Destroyed 24 | . 11 13 Guns 15 | . 11 4 AOE 9 | . . 9 Classes Destroyed 6 | . 5 1 Hauler 2 | . 2 . Recycler 1 | . 1 . Operator 2 | . 2 . Swarmer 3 | . 3 . Grunt 10 | . 8 2 Assembled 11 | . . 11 Best Kill Streak 9 | . 4 9 Combat Bots Only 9 | . 3 9 Max Kills in Single Turn 3 | . 1 3 Gunslinging . | . . . Exploded 3 | . . 3 Melee . | . . . Uniques/NPCs Destroyed . | . . . Combat | -11 -10 -10 -------- Run | Scr Mat Min Damage Taken 1287 | . 452 835 Core 250 | . 114 136 Absorbed by Shields . | . . . Regen/Repaired (Parts) 59 | . 59 . Core Remaining (%) 100 | 100 . . Volleys Fired 85 | . 67 18 Largest 2 | . 2 2 Hottest 100 | . 100 53 Shots Fired 169 | . 133 36 Gun 163 | . 132 31 Cannon . | . . . Launcher 5 | . . 5 Special 1 | . 1 . Kinetic 129 | . 98 31 Thermal 35 | . 35 . Explosive 5 | . . 5 Electromagnetic . | . . . Robot Hit Streak 7 | . 7 5 Robot Miss Streak 5 | . 5 4 Penetration Max . | . . . Secondary Targets 3 | . 1 2 Max Gunslinging Chain 1 | . 1 1 Shots Hit Robots 100 | . 81 19 Core Hits 60 | . 32 28 Critical Kills . | . . . Critical Parts Destroyed . | . . . Critical Strikes . | . . . Melee Attacks . | . . . Impact . | . . . Slashing . | . . . Piercing . | . . . Sneak Attacks . | . . . Combat Hostiles . | . . . Follow-up Attacks . | . . . Damage Inflicted 1841 | . 910 931 Guns 1102 | . 910 192 Cannons . | . . . Explosions 739 | . . 739 Melee . | . . . Ramming . | . . . Kinetic 853 | . 661 192 Thermal 249 | . 249 . Explosive 739 | . . 739 Electromagnetic . | . . . Impact . | . . . Slashing . | . . . Piercing . | . . . Highest Corruption 9 | . . 9 Average Corruption 5 | . . 5 Corruption Purged . | . . . Corruption Blocked . | . . . Effects 1 | . . 1 Parts Rejected 1 | . . 1 Overload Shots . | . . . Overflow Damage 47 | . . 47 Projectiles . | . . . Explosions 47 | . . 47 Melee . | . . . Knockbacks . | . . . Impact . | . . . Kinetic . | . . . Secondary . | . . . Self-Inflicted Damage 72 | . . 72 Shots 3 | . . 3 Rammed . | . . . Targets Rammed . | . . . Kicked . | . . . Crushed . | . . . Highest Temperature 237 | . 237 29 Average Temperature 57 | . 67 10 Received Heat Transfer 371 | . 204 167 Effects 1 | . 1 . Energy Bleed 1 | . 1 . Siege Activations . | . . . Robots Corrupted . | . . . Combat Hostiles . | . . . Parts Fried . | . . . Impact Corruptions . | . . . Robots Melted . | . . . Combat Hostiles . | . . . Parts Melted 1 | . 1 . Heat Transferred 740 | . 740 . Parts Sabotaged . | . . . Parts Stolen . | . . . Parts Stripped . | . . . Power Chain Reactions . | . . . Missiles Intercepted . | . . . Alert | -11 -10 -10 ------- Run | Scr Mat Min Peak Influence 149 | . 149 103 Initial 9 | . . 9 Average 55 | . 63 41 Maximum Alert Level . | . . . Low Security (%) 100 | 100 100 100 Level 1 . | . . . Level 2 . | . . . Level 3 . | . . . Level 4 . | . . . Level 5 . | . . . High Security . | . . . Max Security . | . . . Squads Dispatched 4 | . 4 . Investigation 2 | . 2 . Extermination . | . . . Reinforcement 2 | . 2 . Assault . | . . . Garrison . | . . . Intercept . | . . . Searches Triggered . | . . . Construction Impeded . | . . . Haulers Reinforced . | . . . Active Scanning Responses . | . . . Cargo Convoy Interrupts . | . . . Stealth | -11 -10 -10 --------- Run | Scr Mat Min Distress Signals . | . . . Communications Jammed . | . . . Distress Signals . | . . . Times Spotted 47 | . 25 22 Peak Tracking Total 13 | . 4 13 Tactical Retreats 2 | . . 2 Traps | -11 -10 -10 ------- Run | Scr Mat Min Traps Triggered 2 | . 2 . Indirectly . | . . . Trap Hack Attempts . | . . . Triggered . | . . . Disarmed . | . . . Reprogrammed . | . . . Reused . | . . . Traps Extracted . | . . . Installed . | . . . Triggered . | . . . Machines | -11 -10 -10 ---------- Run | Scr Mat Min Machines Disabled . | . . . Max in Single Turn . | . . . Machines Sabotaged . | . . . Garrisons Compromised . | . . . Overloaded Fab Kills . | . . . Hacking | -11 -10 -10 --------- Run | Scr Mat Min Machines Accessed 7 | . 7 . Terminals 6 | . 6 . Fabricators . | . . . Repair Stations 1 | . 1 . Recycling Units . | . . . Scanalyzers . | . . . Garrison Access . | . . . Total Hacks 21 | . 21 . Successful 12 | . 12 . Failed 9 | . 9 . Catastrophic . | . . . Database Lockouts . | . . . Manual 14 | . 14 . Terminals 19 | . 19 . Fabricators . | . . . Repair Stations 2 | . 2 . Recycling Units . | . . . Scanalyzers . | . . . Garrison Access . | . . . Terminal Hacks 7 | . 7 . Part Schematic 1 | . 1 . Robot Schematic 1 | . 1 . Robot Analysis 2 | . 2 . Prototype ID Bank 1 | . 1 . Locate Traps 1 | . 1 . Zone Layout 1 | . 1 . Fabricator Hacks . | . . . Repair Station Hacks 2 | . 2 . Scan Component 1 | . 1 . Repair 1 | . 1 . Recycling Unit Hacks . | . . . Scanalyzer . | . . . Garrison Access Hacks . | . . . Unauthorized Hacks 3 | . 3 . Terminals 3 | . 3 . Botnet 3 | . 3 . Fabricators . | . . . Repair Stations . | . . . Recycling Units . | . . . Scanalyzers . | . . . Garrison Access . | . . . Data Cores Recovered . | . . . Used . | . . . Hacking Detections 6 | . 6 . Full Trace Events . | . . . Feedback Events . | . . . Feedback Blocked . | . . . Robot Schematics Acquired 1 | . 1 . Robots Built . | . . . Authchips . | . . . Time . | . . . Total Robot Build Rating . | . . . Part Schematics Acquired 1 | . 1 . Parts Built . | . . . Authchips . | . . . Time . | . . . Total Part Build Rating . | . . . Parts Repaired 1 | . 1 . Time 26 | . 26 . Parts Recycled . | . . . Recycled Matter . | . . . Retrieved Matter . | . . . Retrieved Components . | . . . Parts Scanalyzed . | . . . Part Schematics Acquired . | . . . Parts Damaged . | . . . Bothacking | -11 -10 -10 ------------ Run | Scr Mat Min Used RIF Installer . | . . . Robots Hacked . | . . . Non-combat . | . . . Combat . | . . . Robot Hacks Applied . | . . . Relay Couplers Released . | . . . Fabnet Peak Effective % . | . . . Robots Rewired . | . . . Allies Hacked . | . . . Hacks Repelled . | . . . Allies | -11 -10 -10 -------- Run | Scr Mat Min Total Allies . | . . . Largest Group . | . . . Highest-Rated Group . | . . . Highest-Rated Ally . | . . . Total Orders . | . . . Ally Attacks . | . . . Total Damage . | . . . Kills . | . . . Allies Corrupted . | . . . Allies Melted . | . . . Intel | -11 -10 -10 ------- Run | Scr Mat Min Robot Analysis Total 2 | . 2 . Derelict Logs Recovered 2 | . . 2 Drone Launches . | . . . Drone Recoveries . | . . . Exploration | -11 -10 -10 ------------- Run | Scr Mat Min Turns Passed 1756 | 66 1231 459 Spaces Moved 977 | 39 666 272 Core 5 | 5 . . Treads 168 | 34 134 . Legs . | . . . Wheels 804 | . 532 272 Hover . | . . . Flight . | . . . Fastest Speed 50 | 50 130 130 Average Speed 142 | 145 141 144 Slowest Speed 240 | 160 240 145 Overloaded Moves . | . . . Propulsion Burnouts . | . . . Robots Hopped . | . . . Cave-ins Triggered . | . . . Exploration Rate (%) 53 | 3 97 61 Regions Visited 2 Branch Regions 1 Pre-discovered Areas 1 | . . 1 Known Exits Taken . | . . . Unknown Exits Taken 2 | 1 1 . Scrap Searched 1 | . . 1 Spaces Dug 1 | . 1 . Terrain Destroyed 47 | . 1 46 Melee . | . . . Projectile 1 | . 1 . AOE 46 | . . 46 Terrain Rammed . | . . . Walls Destroyed . | . . . Machines Disabled . | . . . Actions | -11 -10 -10 --------- Run | Scr Mat Min Total 1175 | 46 824 305 Wait 57 | . 56 1 Move 975 | 38 665 272 Hop . | . . . Pick Up 20 | 3 14 3 Fast Attach 12 | 5 6 1 Attach 9 | . 2 7 Detach 3 | . 3 . Swap 11 | . 9 2 Drop 3 | . 2 1 Fire 85 | . 67 18 Melee . | . . . Ram . | . . . Kick . | . . . Crush . | . . . Escape Stasis . | . . . Rewire . | . . . Trap . | . . . Miscellaneous . | . . . Route ------- -11/Scrapyard -10/Materials (discovered 5 exits: [*Mat x3] / [*Min x2]) -10/Mines History --------- Turn | Location | Event 17 | -11/Scrapyard | Discovered new exit (range 16) 67 | -11/Scrapyard | Entered Materials 312 | -10/Materials | Discovered new exit (range 15) 317 | -10/Materials | Build established: Mutant 524 | -10/Materials | Discovered new exit (range 12) 622 | -10/Materials | Discovered new exit (range 16) 839 | -10/Materials | Discovered new exit (range 16) 895 | -10/Materials | Discovered new exit (range 16) 1260 | -10/Materials | Repaired Assault Rifle 1298 | -10/Materials | Entered Mines 1313 | -10/Mines | Core integrity fell below 50% 1421 | -10/Mines | Received a Rocket Launcher from a helpful Derelict 1455 | -10/Mines | Learned location of Mines (-9) 1594 | -10/Mines | Learned location of 1 exit from Materials 1701 | -10/Mines | Assembled infested the area 1727 | -10/Mines | Core integrity fell below 20% 1739 | -10/Mines | Destroyed 9 combat bots 1757 | -10/Mines | Destroyed by as-81994 with Assembled Maul Last Messages --------------- 01713_ System corrupted by crushing effect (+1). 01715_ Ion Engine destroyed. 01715_ Destroyed Ion Engine. 01715_ Destroyed Asb. Hover Unit. 01718_ as-05663 destroyed. 01718_ as-71629 destroyed. 01718_ as-14958 destroyed. 01721_ Rocket Launcher destroyed. 01722_ Com. Wheel destroyed. 01722_ System corrupted by crushing effect (+5). 01723_ The unstable cave ceiling collapses. 01724_ Knocked back. 01730_ System corrupted: Com. Wheel rejected. 01730_ Acquired Com. Wheel. 01733_ Knocked back. 01749_ Com. Wheel destroyed. 01749_ System corrupted by crushing effect (+3). 01753_ as-76088 destroyed. 01753_ Switching to secondary target: as-59519. 01756_ as-46043 destroyed. Map ----- +----------------------------------------------------+ | ??# #? ?????????????????????#???## #?????? | | #?# ## #??????????????????????###? #?????? | | ### # ##?????????????????????# ## ##????? | | #????????????????????## #????? | | # ??????????????????# # #????? | | # #????????????????## % #????? | | #????????????????# ##???? | | ##???????????????# #????? | | #???????????????# % ##???? | | ????????????# #????? | | ???? ???#????# #?????? | | #####?????########## #?????? | | ###???????# ###?????? | | ##???????????####### ### #???????? | | ## ##?????#????????????# #?######???????? | | ?## #?????????????????### #??????????????? | | ??## #?????????????????# #????#?????????? | | ??### ##?????????????????# ###???#??????????? | | ???#### #??????????????????# #????????????#???? | | ??????# #??????????######### #??#?#???????????? | | ####??# #????# #????#????#??????? | | # #?# ###???????########## #?#?#??####??????? | | ## #### #???????????# #???#### ##?????? | | #?#?????##### #????## ##????? | | ### #?????#?#%aa #??### #????? | | ##??????????#@### #????# ##???? | | # #??????????# #?# #????# #????? | | # ?## #????#?????# #?# #??### #????? | | #???# ##? ??#?????# #?# #?#?# ##????? | | ????# ##???????????# #?# #??## ###?????? | | ????## ##?????##?#??## #?# #?## ##???????? | | ?????## #### #??## #?# ### ###???????# | | ??????## #???# ### ##????????? | | ???????# |#### #??##a## #######??? | | ???????#%!#?????? #?## ### ## ##?? | | ???????# ###???????#?# """ ##?## #?? | | ??????## ##?? ?????# """ ##???#### #?? | | ??????# ###??????# """ #???????###### ##?? | | ??????# #####???## ##???????????###??? | | ??????## ##???# ##??###??????#???? | | ???????### ##### ##??????????????? | | ???????#?## ## #??????????????? | | ???????##?# ## #?????#?????#??? | | ?????????### #### #### ##???#?????????? | | ?????????#?####??######??## ##??????????????? | | ??????????????????????????######???????????????# | | ?????????????????????????????????#????????#????? | | | | | | | +----------------------------------------------------+ Best States ------------- Heat Dissipation 25 Energy Generation 10 Energy Capacity 250 Matter Stores 300 Matter Capacity 300 Sight Range 16 Terrain Scan Range 14 Terrain Scan Density 10 Evasion (%) 40 Recoil Reduction 2 Item Schematics ----------------- Hcp. Storage Unit | -10/Materials | Hacked Robot Schematics ------------------ M-13 Machinist | -10/Materials | Hacked Fabricated ------------ Nothing Alien Tech Used ----------------- None Achievements -------------- None Challenges ------------ None Game ------ Seed GreatLatentDerivative Manual? 0 Play Time 00:13:40 Cumulative 149.5 hours Start 2022.04.19 @ 23:24:58 End 2022.04.19 @ 23:39:27 Sessions 1 Manual Loads 0 Difficulty Rogue Special Mode None Game No. 123 Rogue 123 Adventurer 0 Explorer 0 Win Type - Total 15 Types 15/0/0/0/0/0/0/0/0 Lore% 67 Gallery% 72 Achievement% 60 Wizard Run 0 Options --------- ASCII 0 Keyboard 0 Movement Vi Keybinds 0 Fullscreen 2 Font 18/SmallcapsGlow Map View 76x50 Tactical HUD 1 Map Filters NONE Filters NONE Steam 0 RUN: 446b6194-9b5d-4703-86b7-1751cc87aa42